[Event "Open NK Rapid 2025"]
[Site "Helmond, Netherlands"]
[Date "2025.05.03"]
[Round "8.12"]
[White "Aarts, Joaquin"]
[Black "Grochal, Joey"]
[Result "1-0"]
[TimeControl "15+5"]
[WhiteFideId "1078224"]
[BlackFideId "1019945"]
[WhiteElo "2027"]
[BlackElo "2261"]

1. d4 {[%clk 00:15:08]} {[%emt 00:00:02]} d5 {[%clk 00:15:06]} {[%emt
00:00:05]} 2. c4 {[%clk 00:15:12]} c6 {[%clk 00:15:10]} {[%emt 00:00:01]} 3.
cxd5 {[%clk 00:14:54]} {[%emt 00:00:24]} cxd5 {[%clk 00:15:14]} 4. Nc3 {[%clk
00:14:57]} Nc6 {[%clk 00:15:18]} {[%emt 00:00:01]} 5. Bf4 {[%clk 00:15:01]} Bf5
{[%clk 00:15:12]} {[%emt 00:00:11]} 6. e3 {[%clk 00:14:32]} {[%emt 00:00:34]}
e6 {[%clk 00:15:14]} {[%emt 00:00:02]} 7. Nf3 {[%clk 00:13:42]} {[%emt
00:00:55]} Bb4 {[%clk 00:15:07]} {[%emt 00:00:12]} 8. Rc1 {[%clk 00:13:31]}
{[%emt 00:00:16]} h6 {[%clk 00:14:51]} {[%emt 00:00:21]} 9. Ne5 {[%clk
00:13:04]} {[%emt 00:00:32]} Nge7 {[%clk 00:14:38]} {[%emt 00:00:19]} 10. Bb5
{[%clk 00:12:19]} {[%emt 00:00:49]} Qb6 {[%clk 00:13:56]} {[%emt 00:00:47]} 11.
Qa4 {[%clk 00:11:55]} {[%emt 00:00:28]} Bxc3+ {[%clk 00:11:27]} {[%emt
00:02:35]} 12. Rxc3 {[%clk 00:11:52]} {[%emt 00:00:08]} Rc8 {[%clk 00:11:09]}
{[%emt 00:00:22]} 13. O-O {[%clk 00:11:02]} {[%emt 00:00:55]} a6 {[%clk
00:10:36]} {[%emt 00:00:39]} 14. Bxc6+ {[%clk 00:10:26]} {[%emt 00:00:41]} Nxc6
{[%clk 00:09:24]} {[%emt 00:01:17]} 15. Rfc1 {[%clk 00:09:28]} {[%emt
00:01:02]} O-O {[%clk 00:08:32]} {[%emt 00:00:58]} 16. Nd7 {[%clk 00:09:00]}
{[%emt 00:00:33]} Qxb2 {[%clk 00:08:35]} {[%emt 00:00:02]} 17. Nxf8 {[%clk
00:09:00]} {[%emt 00:00:05]} Rxf8 {[%clk 00:08:20]} {[%emt 00:00:20]} 18. Qb3
{[%clk 00:08:47]} {[%emt 00:00:18]} Qxb3 {[%clk 00:08:23]} {[%emt 00:00:02]} 19.
Rxb3 {[%clk 00:08:50]} {[%emt 00:00:02]} Na5 {[%clk 00:08:26]} {[%emt
00:00:02]} 20. Rb6 {[%clk 00:08:50]} {[%emt 00:00:04]} Bd3 {[%clk 00:07:58]}
{[%emt 00:00:34]} 21. Bd6 {[%clk 00:07:19]} {[%emt 00:01:35]} Rd8 {[%clk
00:07:42]} {[%emt 00:00:22]} 22. Bb4 {[%clk 00:07:20]} {[%emt 00:00:04]} Nc6
{[%clk 00:07:16]} {[%emt 00:00:32]} 23. Rxb7 {[%clk 00:07:12]} {[%emt
00:00:12]} Nxb4 {[%clk 00:07:15]} {[%emt 00:00:06]} 24. Rxb4 {[%clk 00:07:15]}
{[%emt 00:00:02]} Bc4 {[%emt 00:00:30]} 25. a4 {[%clk 00:06:51]} Kh7 {[%clk
00:07:08]} {[%emt 00:00:16]} 26. h3 {[%clk 00:06:39]} {[%emt 00:00:17]} Kg6
{[%clk 00:07:11]} {[%emt 00:00:03]} 27. f3 {[%clk 00:06:30]} {[%emt 00:00:13]}
f6 {[%clk 00:06:37]} {[%emt 00:00:39]} 28. Rb6 {[%clk 00:06:23]} {[%emt
00:00:10]} Re8 {[%clk 00:06:41]} {[%emt 00:00:03]} 29. Kf2 {[%clk 00:06:20]}
{[%emt 00:00:08]} e5 {[%clk 00:06:25]} {[%emt 00:00:20]} 30. dxe5 {[%clk
00:06:19]} {[%emt 00:00:07]} Rxe5 {[%clk 00:06:30]} 31. Rd6 {[%clk 00:05:49]}
{[%emt 00:00:34]} h5 {[%clk 00:05:16]} {[%emt 00:01:20]} 32. Rd1 {[%clk
00:05:26]} {[%emt 00:00:27]} Kf7 {[%clk 00:04:58]} {[%emt 00:00:23]} 33. Rd7+
{[%clk 00:05:24]} {[%emt 00:00:07]} Kg6 {[%clk 00:04:54]} {[%emt 00:00:10]} 34.
Rd4 {[%clk 00:05:24]} {[%emt 00:00:03]} f5 {[%clk 00:04:56]} {[%emt 00:00:06]}
35. Rh4 {[%clk 00:03:52]} {[%emt 00:01:36]} Re6 {[%clk 00:04:40]} {[%emt
00:00:22]} 36. g4 {[%clk 00:03:36]} {[%emt 00:00:20]} hxg4 {[%clk 00:03:28]}
{[%emt 00:01:18]} 37. hxg4 {[%clk 00:03:07]} {[%emt 00:00:33]} f4 {[%clk
00:03:18]} {[%emt 00:00:15]} 38. exf4 {[%clk 00:02:52]} {[%emt 00:00:20]} Re2+
{[%clk 00:03:07]} {[%emt 00:00:16]} 39. Kg3 {[%clk 00:02:54]} {[%emt 00:00:02]}
Ra2 {[%clk 00:03:09]} {[%emt 00:00:05]} 40. f5+ {[%clk 00:02:51]} {[%emt
00:00:07]} Kf6 {[%clk 00:03:05]} {[%emt 00:00:09]} 41. Rh7 {[%clk 00:02:19]}
{[%emt 00:00:35]} g5 {[%clk 00:02:56]} {[%emt 00:00:16]} 42. Rhe7 {[%clk
00:01:50]} {[%emt 00:00:31]} d4 {[%clk 00:02:56]} {[%emt 00:00:08]} 43. Re4
{[%clk 00:01:44]} {[%emt 00:00:08]} Rc2 {[%clk 00:02:24]} {[%emt 00:00:41]} 44.
Rdxd4 {[%clk 00:01:43]} {[%emt 00:00:05]} Bf1 {[%clk 00:02:22]} {[%emt
00:00:07]} 45. f4 {[%clk 00:01:33]} {[%emt 00:00:15]} gxf4+ {[%clk 00:02:17]}
{[%emt 00:00:10]} 46. Kxf4 {[%clk 00:01:18]} {[%emt 00:00:20]} Rf2+ {[%clk
00:02:18]} {[%emt 00:00:04]} 47. Ke3 {[%clk 00:01:18]} {[%emt 00:00:04]} Re2+
{[%clk 00:02:21]} {[%emt 00:00:03]} 48. Kf3 {[%clk 00:01:17]} {[%emt 00:00:04]}
Ra2 {[%clk 00:02:11]} {[%emt 00:00:17]} 49. Rd6+ {[%clk 00:01:14]} {[%emt
00:00:06]} Kg5 {[%clk 00:02:05]} {[%emt 00:00:12]} 50. Rg6+ {[%clk 00:01:16]}
{[%emt 00:00:02]} Kh4 {[%clk 00:02:09]} {[%emt 00:00:02]} 51. Kf4 {[%clk
00:00:25]} {[%emt 00:00:56]} Rf2+ {[%clk 00:02:04]} {[%emt 00:00:11]} 52. Ke5
{[%clk 00:00:27]} {[%emt 00:00:02]} Bg2 {[%clk 00:01:53]} {[%emt 00:00:16]} 53.
Rd4 {[%clk 00:00:23]} {[%emt 00:00:07]} Re2+ {[%clk 00:01:51]} {[%emt
00:00:09]} 54. Kf6 {[%clk 00:00:25]} {[%emt 00:00:02]} Be4 {[%clk 00:01:46]}
{[%emt 00:00:12]} 55. Kg7 {[%clk 00:00:11]} {[%emt 00:00:17]} Re3 {[%clk
00:01:33]} {[%emt 00:00:20]} 56. f6 {[%clk 00:00:10]} {[%emt 00:00:06]} 1-0

[Event "Open NK Rapid 2025"]
[Site "Helmond, Netherlands"]
[Date "2025.05.03"]
[Round "8.13"]
[White "Vogel, Jaap"]
[Black "Hilwerda, Jonas"]
[Result "1/2-1/2"]
[TimeControl "15+5"]
[WhiteFideId "1000764"]
[BlackFideId "1046713"]
[WhiteElo "2006"]
[BlackElo "2233"]

1. d4 {[%clk 00:15:10]} Nf6 {[%clk 00:15:07]} {[%emt 00:00:04]} 2. Nf3 {[%clk
00:15:14]} {[%emt 00:00:01]} g6 {[%clk 00:15:10]} {[%emt 00:00:01]} 3. g3
{[%clk 00:15:18]} Bg7 {[%clk 00:15:14]} {[%emt 00:00:02]} 4. Bg2 {[%clk
00:15:22]} {[%emt 00:00:03]} O-O {[%clk 00:15:17]} 5. O-O {[%clk 00:15:25]} d6
{[%clk 00:15:18]} {[%emt 00:00:04]} 6. c4 {[%clk 00:15:28]} {[%emt 00:00:02]}
Bd7 {[%clk 00:15:12]} {[%emt 00:00:12]} 7. Nc3 {[%clk 00:15:28]} {[%emt
00:00:04]} Re8 {[%clk 00:15:15]} {[%emt 00:00:02]} 8. e4 {[%clk 00:14:58]}
{[%emt 00:00:35]} e5 {[%clk 00:15:19]} {[%emt 00:00:02]} 9. d5 {[%clk
00:14:55]} {[%emt 00:00:08]} a5 {[%clk 00:15:23]} {[%emt 00:00:01]} 10. h3
{[%clk 00:14:58]} {[%emt 00:00:02]} Na6 {[%clk 00:15:27]} {[%emt 00:00:02]} 11.
Be3 {[%clk 00:15:00]} {[%emt 00:00:01]} Nc5 {[%clk 00:15:30]} {[%emt 00:00:02]}
12. Ne1 {[%clk 00:14:28]} {[%emt 00:00:37]} Rf8 {[%clk 00:15:17]} {[%emt
00:00:19]} 13. Kh2 {[%clk 00:13:03]} {[%emt 00:01:29]} Ne8 {[%clk 00:15:12]}
{[%emt 00:00:11]} 14. f4 {[%clk 00:12:26]} {[%emt 00:00:41]} exf4 {[%clk
00:14:50]} {[%emt 00:00:27]} 15. gxf4 {[%clk 00:12:30]} {[%emt 00:00:02]} b6
{[%clk 00:14:27]} {[%emt 00:00:29]} 16. Bd4 {[%clk 00:12:23]} {[%emt 00:00:10]}
Qh4 {[%clk 00:13:05]} {[%emt 00:01:27]} 17. Bxg7 {[%clk 00:07:48]} {[%emt
00:04:40]} Nxg7 {[%clk 00:13:09]} {[%emt 00:00:02]} 18. Nd3 {[%clk 00:07:17]}
{[%emt 00:00:35]} Nh5 {[%clk 00:12:49]} {[%emt 00:00:26]} 19. Nxc5 {[%clk
00:06:06]} {[%emt 00:01:15]} Qg3+ {[%clk 00:12:43]} {[%emt 00:00:12]} 20. Kg1
{[%clk 00:05:43]} {[%emt 00:00:28]} Bxh3 {[%clk 00:12:03]} {[%emt 00:00:45]} 21.
Qf3 {[%clk 00:05:42]} {[%emt 00:00:06]} Qxg2+ {[%clk 00:10:46]} {[%emt
00:01:21]} 22. Qxg2 {[%clk 00:05:45]} {[%emt 00:00:02]} Bxg2 {[%clk 00:10:50]}
{[%emt 00:00:01]} 23. Kxg2 {[%clk 00:05:49]} bxc5 {[%clk 00:10:38]} {[%emt
00:00:18]} 24. Nb5 {[%clk 00:05:02]} {[%emt 00:00:51]} Rfc8 {[%clk 00:10:28]}
{[%emt 00:00:15]} 25. e5 {[%clk 00:05:02]} {[%emt 00:00:05]} Ra6 {[%clk
00:09:23]} {[%emt 00:01:10]} 26. Rae1 {[%clk 00:04:52]} {[%emt 00:00:14]} Ng7
{[%clk 00:09:14]} {[%emt 00:00:15]} 27. e6 {[%clk 00:03:20]} {[%emt 00:01:37]}
f5 {[%clk 00:05:25]} {[%emt 00:03:54]} 28. Re3 {[%clk 00:03:07]} {[%emt
00:00:17]} Kf8 {[%clk 00:04:50]} {[%emt 00:00:41]} 29. Rh1 {[%clk 00:02:36]}
{[%emt 00:00:35]} Nh5 {[%clk 00:04:37]} {[%emt 00:00:19]} 30. Rxh5 {[%clk
00:02:38]} {[%emt 00:00:02]} gxh5 {[%clk 00:04:41]} {[%emt 00:00:01]} 31. Rh3
{[%clk 00:02:37]} {[%emt 00:00:06]} Kg7 {[%clk 00:03:32]} {[%emt 00:01:14]} 32.
Rxh5 {[%clk 00:02:41]} {[%emt 00:00:02]} Kg6 {[%clk 00:03:31]} {[%emt
00:00:06]} 33. Rg5+ {[%clk 00:02:45]} Kf6 {[%clk 00:03:35]} 34. Rh5 {[%clk
00:02:49]} {[%emt 00:00:01]} Rg8+ {[%clk 00:03:35]} {[%emt 00:00:05]} 35. Kf3
{[%clk 00:02:53]} Rg7 {[%clk 00:03:17]} {[%emt 00:00:23]} 36. Rh6+ {[%clk
00:02:53]} {[%emt 00:00:05]} Ke7 {[%clk 00:03:07]} {[%emt 00:00:15]} 37. Nxc7
{[%clk 00:02:56]} {[%emt 00:00:02]} Rb6 {[%clk 00:03:00]} {[%emt 00:00:12]} 38.
b3 {[%clk 00:02:52]} {[%emt 00:00:09]} Rb8 {[%clk 00:03:01]} {[%emt 00:00:04]}
39. Nb5 {[%clk 00:02:44]} {[%emt 00:00:13]} Rbg8 {[%clk 00:03:03]} {[%emt
00:00:03]} 40. Na7 {[%clk 00:02:39]} {[%emt 00:00:09]} Rg3+ {[%clk 00:02:49]}
{[%emt 00:00:19]} 41. Kf2 {[%clk 00:02:44]} Rg2+ {[%clk 00:02:54]} 42. Kf1
{[%clk 00:02:48]} {[%emt 00:00:01]} Rg1+ {[%clk 00:02:44]} {[%emt 00:00:15]} 43.
Kf2 {[%clk 00:02:52]} R1g2+ {[%clk 00:02:43]} {[%emt 00:00:06]} 44. Kf1 {[%clk
00:02:56]} Rg1+ {[%clk 00:02:06]} {[%emt 00:00:26]} 1/2-1/2

[Event "Open NK Rapid 2025"]
[Site "Helmond, Netherlands"]
[Date "2025.05.03"]
[Round "8.14"]
[White "Fransen, Jean-Paul"]
[Black "Van Batenburg, Mees"]
[Result "0-1"]
[TimeControl "15+5"]
[WhiteFideId "40101487"]
[BlackFideId "1078259"]
[WhiteElo "1964"]
[BlackElo "2217"]

1. e4 {[%clk 00:15:09]} {[%emt 00:00:01]} e6 {[%clk 00:15:10]} {[%emt
00:00:01]} 2. d4 {[%clk 00:15:11]} {[%emt 00:00:02]} d5 {[%clk 00:15:14]}
{[%emt 00:00:01]} 3. e5 {[%clk 00:15:14]} {[%emt 00:00:02]} c5 {[%clk
00:15:18]} {[%emt 00:00:02]} 4. c3 {[%clk 00:15:16]} {[%emt 00:00:02]} Nc6
{[%clk 00:15:22]} {[%emt 00:00:04]} 5. Nf3 {[%clk 00:15:18]} Bd7 {[%clk
00:15:23]} {[%emt 00:00:04]} 6. Bd3 {[%clk 00:15:20]} {[%emt 00:00:03]} Nge7
{[%clk 00:14:58]} {[%emt 00:00:30]} 7. h4 {[%clk 00:15:22]} {[%emt 00:00:02]}
cxd4 {[%clk 00:14:54]} {[%emt 00:00:10]} 8. cxd4 {[%clk 00:15:14]} {[%emt
00:00:14]} Nf5 {[%clk 00:14:56]} {[%emt 00:00:02]} 9. Bxf5 {[%clk 00:15:13]}
{[%emt 00:00:06]} exf5 {[%clk 00:15:00]} {[%emt 00:00:01]} 10. Nc3 {[%clk
00:15:16]} {[%emt 00:00:02]} Be6 {[%clk 00:15:00]} {[%emt 00:00:06]} 11. O-O
{[%clk 00:15:18]} {[%emt 00:00:03]} h6 {[%clk 00:15:00]} {[%emt 00:00:05]} 12.
a3 {[%clk 00:15:17]} {[%emt 00:00:06]} Be7 {[%clk 00:15:02]} {[%emt 00:00:02]}
13. h5 {[%clk 00:15:12]} {[%emt 00:00:11]} O-O {[%clk 00:14:59]} {[%emt
00:00:08]} 14. b4 {[%clk 00:15:14]} {[%emt 00:00:02]} Rc8 {[%clk 00:15:03]}
{[%emt 00:00:02]} 15. Bb2 {[%clk 00:15:06]} {[%emt 00:00:13]} f4 {[%clk
00:15:01]} {[%emt 00:00:07]} 16. Qd2 {[%clk 00:14:54]} {[%emt 00:00:17]} Bg4
{[%clk 00:15:04]} {[%emt 00:00:02]} 17. b5 {[%clk 00:14:44]} {[%emt 00:00:15]}
Na5 {[%clk 00:15:00]} {[%emt 00:00:10]} 18. Qxf4 {[%emt 00:00:13]} Bxh5 {[%clk
00:14:51]} 19. Ne2 {[%clk 00:13:57]} {[%emt 00:00:56]} Rc2 {[%clk 00:14:42]}
{[%emt 00:00:13]} 20. Nc3 {[%clk 00:08:15]} {[%emt 00:05:47]} Rxb2 {[%clk
00:14:31]} {[%emt 00:00:16]} 21. Qc1 {[%clk 00:08:08]} {[%emt 00:00:13]} Rb3
{[%clk 00:14:10]} {[%emt 00:00:27]} 22. Nd2 {[%clk 00:07:58]} {[%emt 00:00:14]}
Qd7 {[%clk 00:11:14]} {[%emt 00:03:01]} 23. Qc2 {[%clk 00:07:43]} {[%emt
00:00:20]} Bg6 {[%clk 00:11:18]} {[%emt 00:00:01]} 24. Qc1 {[%clk 00:07:38]}
{[%emt 00:00:10]} Rc8 {[%clk 00:11:21]} {[%emt 00:00:02]} 25. Nxb3 {[%clk
00:07:38]} {[%emt 00:00:05]} Nxb3 {[%clk 00:11:24]} {[%emt 00:00:02]} 26. Qb2
{[%clk 00:07:42]} {[%emt 00:00:01]} Nxa1 {[%clk 00:11:26]} {[%emt 00:00:03]} 27.
Qxa1 {[%clk 00:07:45]} {[%emt 00:00:02]} Bd3 {[%clk 00:11:00]} {[%emt
00:00:30]} 28. Rc1 {[%clk 00:07:38]} {[%emt 00:00:13]} Bxb5 {[%clk 00:10:48]}
{[%emt 00:00:18]} 29. Nxb5 {[%clk 00:07:35]} {[%emt 00:00:07]} Rxc1+ {[%clk
00:10:52]} {[%emt 00:00:02]} 30. Qxc1 {[%clk 00:07:38]} {[%emt 00:00:01]} Qxb5
{[%clk 00:10:55]} {[%emt 00:00:02]} 31. Qc8+ {[%clk 00:07:41]} {[%emt
00:00:01]} Bf8 {[%clk 00:10:59]} {[%emt 00:00:01]} 32. e6 {[%clk 00:07:40]}
{[%emt 00:00:06]} fxe6 {[%clk 00:11:02]} {[%emt 00:00:02]} 33. Qxe6+ {[%clk
00:07:45]} {[%emt 00:00:02]} Kh8 {[%clk 00:10:39]} {[%emt 00:00:27]} 34. Qf7
{[%clk 00:07:46]} {[%emt 00:00:04]} Qb1+ {[%clk 00:10:33]} {[%emt 00:00:11]} 35.
Kh2 {[%clk 00:07:46]} {[%emt 00:00:05]} Bd6+ {[%clk 00:10:37]} {[%emt
00:00:02]} 36. g3 {[%clk 00:07:38]} {[%emt 00:00:12]} Qc2 {[%clk 00:09:36]}
{[%emt 00:01:06]} 37. Kh3 {[%clk 00:07:15]} {[%emt 00:00:28]} Qe4 {[%clk
00:09:34]} {[%emt 00:00:07]} 38. f3 {[%clk 00:07:10]} {[%emt 00:00:10]} Qxd4
{[%clk 00:09:01]} {[%emt 00:00:37]} 39. f4 {[%clk 00:07:10]} {[%emt 00:00:06]}
Qe4 {[%clk 00:08:58]} {[%emt 00:00:07]} 40. f5 {[%clk 00:07:05]} {[%emt
00:00:10]} Qe3 {[%clk 00:08:34]} {[%emt 00:00:29]} 0-1

[Event "Open NK Rapid 2025"]
[Site "Helmond, Netherlands"]
[Date "2025.05.03"]
[Round "8.15"]
[White "Kazarjan, Gachatur"]
[Black "Klein, Ron"]
[Result "1-0"]
[TimeControl "15+5"]
[WhiteFideId "1068750"]
[BlackFideId "1014668"]
[WhiteElo "2155"]
[BlackElo "2014"]

1. e4 {[%clk 00:15:08]} {[%emt 00:00:01]} d5 {[%clk 00:15:01]} {[%emt
00:00:11]} 2. exd5 {[%clk 00:15:06]} {[%emt 00:00:05]} Qxd5 {[%clk 00:15:03]}
{[%emt 00:00:02]} 3. Nc3 {[%clk 00:15:10]} {[%emt 00:00:02]} Qa5 {[%clk
00:15:06]} {[%emt 00:00:01]} 4. d4 {[%clk 00:15:14]} {[%emt 00:00:02]} Bf5
{[%clk 00:15:05]} {[%emt 00:00:06]} 5. Bc4 {[%clk 00:15:16]} {[%emt 00:00:03]}
e6 {[%clk 00:14:56]} {[%emt 00:00:15]} 6. Bd2 {[%clk 00:15:13]} {[%emt
00:00:08]} c6 {[%clk 00:14:58]} {[%emt 00:00:03]} 7. Nf3 {[%clk 00:15:13]}
{[%emt 00:00:04]} Nf6 {[%clk 00:14:52]} {[%emt 00:00:11]} 8. Qe2 {[%clk
00:14:37]} {[%emt 00:00:41]} Bb4 {[%clk 00:14:49]} {[%emt 00:00:08]} 9. O-O
{[%clk 00:14:36]} {[%emt 00:00:06]} Bg4 {[%clk 00:14:50]} {[%emt 00:00:03]} 10.
h3 {[%clk 00:14:35]} {[%emt 00:00:07]} Bxf3 {[%clk 00:14:20]} {[%emt 00:00:35]}
11. Qxf3 {[%clk 00:14:37]} {[%emt 00:00:02]} O-O {[%clk 00:14:19]} {[%emt
00:00:06]} 12. a3 {[%clk 00:14:39]} {[%emt 00:00:04]} Bxc3 {[%clk 00:14:14]}
{[%emt 00:00:09]} 13. Bxc3 {[%clk 00:14:43]} {[%emt 00:00:02]} Qc7 {[%clk
00:14:16]} {[%emt 00:00:03]} 14. Rad1 {[%clk 00:14:30]} {[%emt 00:00:18]} Nbd7
{[%clk 00:14:16]} {[%emt 00:00:06]} 15. Rfe1 {[%clk 00:14:25]} {[%emt
00:00:09]} Nb6 {[%clk 00:13:19]} {[%emt 00:01:02]} 16. Bb3 {[%clk 00:14:14]}
{[%emt 00:00:16]} Nbd5 {[%clk 00:12:09]} {[%emt 00:01:16]} 17. Bd2 {[%clk
00:14:14]} {[%emt 00:00:05]} a5 {[%clk 00:11:45]} {[%emt 00:00:29]} 18. c4
{[%clk 00:14:10]} {[%emt 00:00:10]} Nb6 {[%clk 00:11:37]} {[%emt 00:00:12]} 19.
Bg5 {[%clk 00:14:07]} {[%emt 00:00:08]} Nbd7 {[%clk 00:11:27]} {[%emt
00:00:15]} 20. d5 {[%clk 00:13:42]} {[%emt 00:00:30]} exd5 {[%clk 00:11:14]}
{[%emt 00:00:18]} 21. cxd5 {[%clk 00:13:38]} {[%emt 00:00:10]} Rfe8 {[%clk
00:10:31]} {[%emt 00:00:48]} 22. d6 {[%clk 00:13:32]} {[%emt 00:00:10]} Qb6
{[%clk 00:10:23]} {[%emt 00:00:13]} 23. Re7 {[%clk 00:13:15]} {[%emt 00:00:22]}
Rxe7 {[%clk 00:09:40]} {[%emt 00:00:48]} 24. dxe7 {[%clk 00:13:18]} {[%emt
00:00:02]} h6 {[%clk 00:09:28]} {[%emt 00:00:17]} 25. Bh4 {[%clk 00:11:28]}
{[%emt 00:01:54]} g5 {[%clk 00:09:26]} {[%emt 00:00:08]} 26. Rxd7 {[%clk
00:11:07]} {[%emt 00:00:26]} 1-0

[Event "Open NK Rapid 2025"]
[Site "Helmond, Netherlands"]
[Date "2025.05.03"]
[Round "8.16"]
[White "Wolff, Christoph"]
[Black "Chua, Ethan"]
[Result "0-1"]
[TimeControl "15+5"]
[WhiteFideId "4648706"]
[BlackFideId "1089250"]
[WhiteElo "1941"]
[BlackElo "2069"]

1. e4 {[%clk 00:15:08]} c5 {[%clk 00:15:05]} {[%emt 00:00:06]} 2. Nf3 {[%clk
00:15:11]} {[%emt 00:00:02]} Nc6 {[%clk 00:15:09]} 3. Nc3 {[%clk 00:15:14]}
{[%emt 00:00:02]} e5 {[%clk 00:15:12]} {[%emt 00:00:02]} 4. Bc4 {[%clk
00:15:05]} {[%emt 00:00:14]} Be7 {[%clk 00:15:16]} {[%emt 00:00:02]} 5. O-O
{[%clk 00:15:07]} {[%emt 00:00:03]} d6 {[%clk 00:15:15]} {[%emt 00:00:06]} 6.
Nd5 {[%clk 00:14:52]} {[%emt 00:00:19]} Nf6 {[%clk 00:15:19]} {[%emt 00:00:02]}
7. Re1 {[%clk 00:14:42]} {[%emt 00:00:14]} O-O {[%clk 00:15:17]} {[%emt
00:00:07]} 8. Nxe7+ {[%clk 00:14:41]} {[%emt 00:00:06]} Nxe7 {[%clk 00:15:10]}
{[%emt 00:00:12]} 9. a4 {[%clk 00:14:41]} {[%emt 00:00:06]} Be6 {[%clk
00:15:07]} {[%emt 00:00:08]} 10. d3 {[%clk 00:14:34]} {[%emt 00:00:11]} h6
{[%clk 00:14:44]} {[%emt 00:00:29]} 11. c3 {[%clk 00:14:27]} {[%emt 00:00:11]}
Qd7 {[%clk 00:14:45]} {[%emt 00:00:04]} 12. Qb3 {[%clk 00:14:10]} {[%emt
00:00:22]} Bxc4 {[%clk 00:14:45]} {[%emt 00:00:05]} 13. dxc4 {[%clk 00:14:02]}
{[%emt 00:00:13]} Qc6 {[%clk 00:14:19]} {[%emt 00:00:32]} 14. Qc2 {[%clk
00:13:59]} {[%emt 00:00:08]} Ng6 {[%clk 00:14:22]} {[%emt 00:00:02]} 15. g3
{[%clk 00:13:33]} {[%emt 00:00:30]} a5 {[%clk 00:14:24]} {[%emt 00:00:04]} 16.
Bd2 {[%clk 00:13:30]} {[%emt 00:00:07]} Rfe8 {[%clk 00:14:27]} {[%emt
00:00:02]} 17. b3 {[%clk 00:12:12]} {[%emt 00:01:23]} Rad8 {[%clk 00:14:30]}
{[%emt 00:00:02]} 18. Rad1 {[%clk 00:12:12]} {[%emt 00:00:05]} Nf8 {[%clk
00:13:40]} {[%emt 00:00:55]} 19. Nh4 {[%clk 00:12:07]} {[%emt 00:00:10]} Kh8
{[%clk 00:12:51]} {[%emt 00:00:54]} 20. Nf5 {[%clk 00:12:04]} {[%emt 00:00:08]}
Ng6 {[%clk 00:12:40]} {[%emt 00:00:15]} 21. Qd3 {[%clk 00:11:36]} {[%emt
00:00:34]} Ne7 {[%clk 00:12:39]} {[%emt 00:00:06]} 22. Qf3 {[%clk 00:11:25]}
{[%emt 00:00:16]} Nxf5 {[%clk 00:10:28]} {[%emt 00:02:17]} 23. Qxf5 {[%clk
00:11:27]} {[%emt 00:00:03]} Re6 {[%clk 00:09:47]} {[%emt 00:00:46]} 24. h4
{[%clk 00:11:04]} {[%emt 00:00:27]} Qc7 {[%clk 00:09:12]} {[%emt 00:00:40]} 25.
g4 {[%clk 00:10:54]} {[%emt 00:00:15]} Qe7 {[%clk 00:08:40]} {[%emt 00:00:36]}
26. g5 {[%clk 00:10:06]} {[%emt 00:00:54]} Nh7 {[%clk 00:08:40]} {[%emt
00:00:05]} 27. Kg2 {[%clk 00:08:30]} {[%emt 00:01:41]} Nf8 {[%clk 00:05:33]}
{[%emt 00:03:12]} 28. Rh1 {[%clk 00:08:01]} {[%emt 00:00:33]} h5 {[%clk
00:04:52]} {[%emt 00:00:47]} 29. Qf3 {[%clk 00:07:11]} {[%emt 00:00:56]} g6
{[%clk 00:04:56]} {[%emt 00:00:01]} 30. Qd3 {[%clk 00:06:55]} {[%emt 00:00:20]}
Kg8 {[%clk 00:04:25]} {[%emt 00:00:37]} 31. Be3 {[%clk 00:06:50]} {[%emt
00:00:09]} Qc7 {[%clk 00:04:11]} {[%emt 00:00:19]} 32. Qd5 {[%clk 00:06:13]}
{[%emt 00:00:43]} Nd7 {[%clk 00:03:39]} {[%emt 00:00:37]} 33. Rh3 {[%clk
00:05:53]} {[%emt 00:00:24]} Nb6 {[%clk 00:03:30]} {[%emt 00:00:15]} 34. Qd3
{[%clk 00:05:43]} {[%emt 00:00:14]} Re7 {[%clk 00:03:21]} {[%emt 00:00:14]} 35.
Rf3 {[%clk 00:05:42]} {[%emt 00:00:06]} Re6 {[%clk 00:03:05]} {[%emt 00:00:21]}
36. Rf6 {[%clk 00:05:43]} {[%emt 00:00:04]} Rxf6 {[%clk 00:03:06]} {[%emt
00:00:04]} 37. gxf6 {[%clk 00:05:47]} {[%emt 00:00:01]} Nd7 {[%clk 00:03:04]}
{[%emt 00:00:07]} 38. Bg5 {[%clk 00:05:50]} {[%emt 00:00:02]} Nf8 {[%clk
00:03:03]} {[%emt 00:00:07]} 39. Qd5 {[%clk 00:05:10]} {[%emt 00:00:45]} Ne6
{[%clk 00:03:01]} {[%emt 00:00:07]} 40. Bc1 {[%clk 00:04:45]} {[%emt 00:00:29]}
Qd7 {[%clk 00:03:01]} {[%emt 00:00:05]} 41. Rd3 {[%clk 00:04:28]} {[%emt
00:00:23]} b6 {[%clk 00:02:05]} {[%emt 00:01:01]} 42. Rg3 {[%clk 00:04:29]}
{[%emt 00:00:03]} Re8 {[%clk 00:01:54]} {[%emt 00:00:17]} 43. Bh6 {[%clk
00:04:06]} {[%emt 00:00:27]} Kh7 {[%clk 00:01:52]} {[%emt 00:00:07]} 44. Qd2
{[%clk 00:03:58]} {[%emt 00:00:12]} Qd8 {[%clk 00:01:46]} {[%emt 00:00:12]} 45.
Bg5 {[%clk 00:04:00]} {[%emt 00:00:03]} Qa8 {[%clk 00:01:22]} {[%emt 00:00:29]}
46. Re3 {[%clk 00:03:39]} {[%emt 00:00:26]} Nf4+ {[%clk 00:01:22]} {[%emt
00:00:06]} 47. Bxf4 {[%clk 00:03:40]} {[%emt 00:00:04]} exf4 {[%clk 00:01:24]}
{[%emt 00:00:02]} 48. Rf3 {[%clk 00:03:18]} {[%emt 00:00:27]} Rxe4 {[%clk
00:01:07]} {[%emt 00:00:22]} 49. Qxd6 {[%clk 00:03:16]} {[%emt 00:00:07]} Kg8
{[%clk 00:00:41]} {[%emt 00:00:31]} 50. Qxb6 {[%clk 00:02:53]} {[%emt
00:00:29]} Qc8 {[%clk 00:00:44]} {[%emt 00:00:01]} 51. Kf1 {[%clk 00:02:39]}
{[%emt 00:00:18]} Re6 {[%clk 00:00:28]} {[%emt 00:00:22]} 52. Qxa5 {[%clk
00:02:29]} {[%emt 00:00:15]} Rxf6 {[%clk 00:00:32]} {[%emt 00:00:01]} 53. Rd3
{[%clk 00:02:13]} {[%emt 00:00:21]} Qg4 {[%clk 00:00:30]} {[%emt 00:00:06]} 54.
Qd8+ {[%clk 00:02:16]} {[%emt 00:00:03]} Kg7 {[%clk 00:00:34]} {[%emt
00:00:01]} 55. Rd6 {[%clk 00:01:45]} {[%emt 00:00:36]} Qh3+ {[%emt 00:00:12]}
56. Kg1 {[%clk 00:01:34]} {[%emt 00:00:15]} Rf5 {[%clk 00:00:28]} {[%emt
00:00:05]} 57. Rd3 {[%clk 00:01:22]} {[%emt 00:00:17]} f3 {[%clk 00:00:31]}
{[%emt 00:00:03]} 58. Qd6 {[%clk 00:01:08]} {[%emt 00:00:19]} Qg2# {[%clk
00:00:28]} {[%emt 00:00:03]} 0-1